bitfinex-derivatives/quotes_BTCF0:USTF0_20240824
["timestamp","ask_amount","ask_price","bid_price","bid_amount"]
[1724527027073,1.10037831,64323.0,64322.0,0.12108]
[1724527027270,1.04813023,64323.0,64322.0,0.12108]
[1724527027463,0.58173023,64323.0,64322.0,0.12108]
[1724527028278,0.46644,64322.0,64313.0,0.04383801]
[1724527028575,0.077711,64312.0,64311.0,0.11904]
[1724527028774,0.26510808,64312.0,64311.0,0.11904]
[1724527028979,0.73158808,64312.0,64311.0,0.11904]
[1724527029275,0.654191,64312.0,64311.0,0.11904]
[1724527029775,0.654191,64312.0,64311.0,0.12104]
[1724527030181,1.054191,64312.0,64311.0,0.12104]
[1724527031077,1.414991,64312.0,64311.0,0.12104]
[1724527031575,1.054191,64312.0,64311.0,0.12104]
[1724527031777,1.414991,64312.0,64311.0,0.12104]
[1724527032171,1.47681359,64312.0,64311.0,0.12104]
[1724527033070,1.07681359,64312.0,64311.0,0.12104]
[1724527033274,0.61033359,64312.0,64311.0,0.12104]
[1724527033881,1.07681359,64312.0,64311.0,0.12104]
[1724527034183,0.63679063,64312.0,64311.0,0.12104]
[1724527034779,1.10327063,64312.0,64311.0,0.12104]
[1724527035173,0.57496804,64312.0,64311.0,0.12104]
[1724527037776,0.62131234,64312.0,64311.0,0.12104]
[1724527038170,0.62130867,64312.0,64311.0,0.12104]
[1724527038576,0.57496804,64312.0,64311.0,0.12104]
[1724527041882,0.21416804,64312.0,64311.0,0.12104]
[1724527043389,0.21416804,64312.0,64311.0,0.12096]
[1724527047289,0.26050867,64312.0,64311.0,0.12096]
[1724527047684,0.27599063,64312.0,64311.0,0.12096]
[1724527047889,0.21416804,64312.0,64311.0,0.12096]
[1724527050986,0.57496804,64312.0,64311.0,0.12096]
[1724527052393,0.21416804,64312.0,64311.0,0.12096]
[1724527052597,0.57496804,64312.0,64311.0,0.12096]
[1724527053187,0.65236512,64312.0,64311.0,0.12096]
[1724527053790,0.29156512,64312.0,64311.0,0.12096]
[1724527053990,0.65236512,64312.0,64311.0,0.12096]
[1724527055397,0.65229239,64312.0,64311.0,0.12096]
[1724527055592,1.11877239,64312.0,64311.0,0.12096]
[1724527056396,1.06664661,64312.0,64311.0,0.12096]
[1724527056596,0.23936661,64312.0,64311.0,0.12096]
[1724527056792,0.60016661,64312.0,64311.0,0.12096]
[1724527057189,0.60016661,64312.0,64311.0,0.002]
[1724527057590,0.23936661,64312.0,64311.0,0.002]
[1724527057898,0.60016661,64312.0,64311.0,0.002]
[1724527058596,0.57496804,64312.0,64311.0,0.002]
[1724527058794,0.60016661,64312.0,64311.0,0.002]
[1724527059892,0.7707564,64312.0,64311.0,0.002]
[1724527060091,0.67787761,64312.0,64311.0,0.002]
[1724527060499,0.8170564,64312.0,64311.0,0.002]
[1724527062295,0.72417761,64312.0,64311.0,0.002]
[1724527063095,1.08497761,64312.0,64311.0,0.002]
[1724527063610,1.13148916,64312.0,64311.0,0.002]
[1724527064604,0.94377816,64312.0,64311.0,0.002]
[1724527064790,0.96096661,64312.0,64311.0,0.002]
[1724527068504,0.96096725,64312.0,64311.0,0.002]
[1724527072095,0.52245625,64312.0,64311.0,0.002]
[1724527072295,0.5746537,64312.0,64311.0,0.002]
[1724527072696,0.49725704,64312.0,64311.0,0.002]
[1724527073199,0.5746537,64312.0,64311.0,0.002]
[1724527075205,0.2138537,64312.0,64311.0,0.002]
[1724527075604,0.13645704,64312.0,64311.0,0.002]
[1724527075803,0.13645704,64312.0,64311.0,0.10401214]
[1724527080903,0.17190825,64312.0,64311.0,0.10401214]
[1724527081307,0.11,64312.0,64311.0,0.99333911]
[1724527081603,0.11,64312.0,64311.0,0.46481214]
[1724527081804,0.11,64312.0,64311.0,1.33129214]
[1724527082604,0.11,64312.0,64311.0,0.93129214]
[1724527084013,0.11,64312.0,64311.0,0.906992]
[1724527084215,0.04641196,64317.0,64311.0,1.36357681]
[1724527084423,0.00023321,64318.0,64317.0,0.077705]
[1724527084424,0.15661174,64318.0,64317.0,0.077705]
[1724527084712,0.11023321,64318.0,64317.0,0.56840181]
[1724527085301,0.00023321,64318.0,64317.0,0.56844181]
[1724527085503,0.11023321,64318.0,64317.0,0.56844181]
[1724527085910,0.11523321,64318.0,64317.0,0.6873211]
[1724527086714,0.11523321,64318.0,64317.0,0.5684411]
[1724527087210,0.11623321,64318.0,64317.0,0.6872811]
[1724527087406,0.11623321,64318.0,64317.0,0.68728038]
[1724527088912,0.11123321,64318.0,64317.0,0.68728038]
[1724527089108,0.11123321,64318.0,64317.0,0.69028038]
[1724527090209,4e-05,64323.0,64317.0,1.48341538]
[1724527090414,4e-05,64323.0,64322.0,0.077699]
[1724527090718,4e-05,64323.0,64322.0,0.36515438]
[1724527090915,4e-05,64323.0,64322.0,0.36519438]
[1724527091807,4e-05,64323.0,64322.0,0.24643438]
[1724527092011,4e-05,64323.0,64322.0,0.36519438]
[1724527092208,0.00304,64323.0,64322.0,0.340899]
[1724527092412,0.11304,64323.0,64322.0,0.36519312]
[1724527092713,0.00304,64323.0,64322.0,0.36519312]
[1724527092919,0.00304,64323.0,64322.0,1.23159312]
[1724527093108,0.11304,64323.0,64322.0,1.207299]
[1724527093624,0.11304,64323.0,64322.0,0.807299]
[1724527094205,0.11304,64323.0,64322.0,0.807259]
[1724527095217,0.00304,64323.0,64322.0,0.807259]
[1724527095713,0.11304,64323.0,64322.0,0.688539]
[1724527095909,0.11304,64323.0,64322.0,0.807259]
[1724527096619,0.00304,64323.0,64322.0,0.807259]
[1724527098224,0.11304,64323.0,64322.0,0.807259]
[1724527098513,0.11304,64323.0,64322.0,0.340859]
[1724527098715,0.11304,64323.0,64322.0,0.807259]
[1724527099419,0.17494825,64323.0,64322.0,0.807259]
[1724527099719,0.17494825,64323.0,64322.0,0.340859]
[1724527100019,0.17494825,64323.0,64322.0,0.496299]
[1724527100320,0.11304,64323.0,64322.0,0.496299]
[1724527101519,0.00304,64323.0,64322.0,0.496299]
[1724527101719,0.06476677,64323.0,64322.0,0.496299]
[1724527102022,0.00304,64323.0,64322.0,0.496299]
[1724527103217,0.00304,64323.0,64322.0,1.362699]
[1724527103417,0.00304,64323.0,64322.0,1.42479413]
[1724527104012,0.00304,64323.0,64322.0,1.362699]
[1724527105019,0.00304,64323.0,64322.0,1.472699]
[1724527105212,0.00304,64323.0,64322.0,1.49699083]
[1724527105412,0.00304,64323.0,64322.0,1.472699]
[1724527105613,0.00304,64323.0,64322.0,1.49699083]
[1724527106516,0.00304,64323.0,64322.0,1.472699]
[1724527106912,0.00304,64323.0,64322.0,1.4969904]
[1724527107309,0.00304,64323.0,64322.0,1.472699]
[1724527109218,0.00304,64323.0,64322.0,1.66877023]
[1724527109727,0.04632308,64331.0,64322.0,1.395]
[1724527109925,0.09512308,64338.0,64330.0,0.4708]
[1724527110224,0.0488,64338.0,64335.0,0.077683]
[1724527110426,0.0008,64336.0,64335.0,0.077683]
[1724527110723,0.0488,64338.0,64335.0,0.077683]
[1724527111322,0.11,64336.0,64334.0,0.06202931]
[1724527111921,0.11,64336.0,64335.0,0.001]
[1724527112124,0.11,64336.0,64335.0,0.00096]
[1724527112423,0.11,64336.0,64334.0,0.06202931]
[1724527112614,0.115,64336.0,64334.0,0.06302931]
[1724527112818,0.115,64336.0,64335.0,0.001]
[1724527113627,0.115,64336.0,64334.0,0.14171231]
[1724527114125,0.113,64336.0,64335.0,0.001]
[1724527114623,0.11,64336.0,64335.0,0.001]
[1724527114830,0.113,64336.0,64335.0,0.001]
[1724527115023,0.113,64336.0,64335.0,0.078683]
[1724527115217,0.11,64336.0,64335.0,0.078683]
[1724527115422,0.11,64336.0,64335.0,0.079683]
[1724527115423,0.113,64336.0,64335.0,0.079683]
[1724527117823,0.113,64336.0,64335.0,0.079723]
[1724527119622,0.113,64336.0,64335.0,0.440523]
[1724527122726,0.113,64336.0,64335.0,0.079723]
[1724527123522,0.113,64336.0,64335.0,0.198363]
[1724527123833,0.15932308,64336.0,64335.0,0.02632821]
[1724527124020,0.113,64336.0,64335.0,0.00204]
[1724527124227,0.113,64336.0,64335.0,0.12068]
[1724527124722,1.04104677,64336.0,64324.0,0.06202931]
[1724527124932,0.11,64325.0,64323.0,0.077697]
[1724527125339,0.0491,64324.0,64323.0,0.077697]
[1724527125523,0.0491,64324.0,64323.0,0.196337]
[1724527126623,0.11,64326.0,64325.0,0.077694]
[1724527127427,0.11,64326.0,64325.0,0.077734]
[1724527128724,0.112,64326.0,64325.0,0.077734]
[1724527130427,0.13718937,64326.0,64325.0,0.077734]
[1724527131739,0.13718945,64326.0,64325.0,0.077734]
[1724527132034,0.112,64326.0,64325.0,0.077734]
[1724527132532,0.18930562,64326.0,64325.0,0.077734]
[1724527132730,0.18930562,64326.0,64325.0,0.10202637]
[1724527132925,0.18934562,64326.0,64325.0,0.10202637]
[1724527133333,0.18934562,64326.0,64325.0,0.077734]
[1724527133531,0.11204,64326.0,64325.0,0.10202637]
[1724527134039,0.11204,64326.0,64325.0,0.22066637]
[1724527135428,0.11204,64326.0,64325.0,0.14297237]
[1724527135634,0.11204,64326.0,64325.0,0.11868]
[1724527143937,0.15842552,64326.0,64325.0,0.11868]
[1724527145146,0.11204,64326.0,64325.0,0.11868]
[1724527145340,0.15842552,64326.0,64325.0,0.11868]
[1724527146645,0.11204,64326.0,64325.0,0.11868]
[1724527148845,0.189734,64326.0,64325.0,0.11868]
[1724527151550,0.189734,64326.0,64325.0,0.11864]
[1724527153146,0.26703962,64326.0,64325.0,0.11864]
[1724527153655,0.62783962,64326.0,64325.0,0.11864]
[1724527154051,0.65341959,64326.0,64325.0,4e-05]
[1724527154241,0.7464824,64326.0,64325.0,0.11864]
[1724527154449,0.65341959,64326.0,64325.0,0.11864]
[1724527155147,0.74646064,64326.0,64325.0,0.11864]
[1724527155855,0.65341959,64326.0,64325.0,0.11864]
[1724527156158,0.74645931,64326.0,64325.0,0.11864]
[1724527160363,0.65341959,64326.0,64325.0,0.11864]
[1724527161654,0.54341959,64326.0,64325.0,0.11864]
[1724527161956,0.65341959,64326.0,64325.0,0.11864]
[1724527162749,1.04208757,64326.0,64322.0,0.15544]
[1724527162958,0.187697,64323.0,64322.0,0.15544]
[1724527163150,0.67929057,64323.0,64322.0,0.15544]
[1724527163751,0.67933057,64323.0,64322.0,0.15544]
[1724527164355,0.67933057,64323.0,64322.0,0.15744]
[1724527165558,0.67933057,64323.0,64322.0,0.15544]
[1724527166063,0.56933057,64323.0,64322.0,0.15544]
[1724527166259,0.67933057,64323.0,64322.0,0.15544]
[1724527166658,1.04013057,64323.0,64322.0,0.15544]
[1724527167348,0.67933057,64323.0,64322.0,0.15544]
[1724527167554,0.57373057,64323.0,64322.0,0.15544]
[1724527168154,0.21293057,64323.0,64322.0,0.15544]
[1724527168359,0.57373057,64323.0,64322.0,0.15544]
[1724527168563,0.21293057,64323.0,64322.0,0.15544]
[1724527168761,0.57373057,64323.0,64322.0,0.15544]
[1724527169063,0.46373057,64323.0,64322.0,0.15544]
[1724527169262,0.57373057,64323.0,64322.0,0.15544]
[1724527169462,0.548537,64323.0,64322.0,0.15544]
[1724527170564,0.60374704,64323.0,64322.0,0.15544]
[1724527171652,0.57373109,64323.0,64322.0,0.15544]
[1724527171849,0.60374703,64323.0,64322.0,0.15544]
[1724527172660,0.60374703,64323.0,64320.0,0.11883321]
[1724527172661,0.0777,64321.0,64320.0,0.11883321]
[1724527172855,0.13291003,64321.0,64320.0,0.11883321]
[1724527173553,0.15520159,64321.0,64320.0,0.11883321]
[1724527174662,0.15520159,64321.0,64320.0,0.12083321]
[1724527175158,0.51600159,64321.0,64320.0,0.12083321]
[1724527175360,0.36084,64321.0,64313.0,0.04652667]
[1724527175558,0.36084,64321.0,64312.0,0.14152667]
[1724527175559,0.17197832,64315.0,64312.0,0.14152667]
[1724527175754,0.17197832,64315.0,64314.0,0.1186]
[1724527175951,0.4708,64315.0,64314.0,0.1186]
[1724527176863,0.548508,64315.0,64314.0,0.1186]
[1724527177460,0.548508,64315.0,64314.0,0.1276]
[1724527177758,0.548508,64315.0,64314.0,0.1346]
[1724527179563,0.548508,64315.0,64314.0,0.016]
[1724527179755,0.548508,64315.0,64314.0,0.13456]
[1724527180159,0.65234698,64315.0,64314.0,0.13456]
[1724527180365,0.57487408,64315.0,64314.0,0.13456]
[1724527181269,0.60007084,64315.0,64314.0,0.13456]
[1724527181466,0.60007075,64315.0,64314.0,0.13456]
[1724527184757,0.60007075,64315.0,64314.0,0.016]
[1724527184963,0.69302466,64315.0,64314.0,0.13456]
[1724527185167,0.49007075,64315.0,64314.0,0.13456]
[1724527185368,0.60007075,64315.0,64314.0,0.13456]
[1724527186066,0.60007192,64315.0,64314.0,0.13456]
[1724527187567,0.96087192,64315.0,64314.0,0.13456]
[1724527188775,0.96087188,64315.0,64314.0,0.13456]
[1724527189674,0.23927188,64315.0,64314.0,0.13456]
[1724527189865,0.96087188,64315.0,64314.0,0.13456]
[1724527190066,0.23927188,64315.0,64314.0,0.13456]
[1724527190373,0.96087188,64315.0,64314.0,0.13456]
[1724527191675,0.23927188,64315.0,64314.0,0.13456]
[1724527192076,1.74960388,64315.0,64310.0,0.04652667]
[1724527192374,1.74960388,64315.0,64308.0,0.00023321]
[1724527192375,0.077714,64309.0,64308.0,0.00023321]
[1724527192570,0.51600924,64309.0,64308.0,0.00023321]
[1724527192975,0.46371405,64309.0,64308.0,0.00023321]
[1724527193166,0.46375405,64309.0,64308.0,0.00023321]
[1724527193573,0.46475405,64309.0,64308.0,0.01423321]
[1724527193979,0.46475405,64309.0,64308.0,0.02723321]
[1724527194170,0.439554,64309.0,64308.0,0.02723321]
[1724527196178,0.51701754,64309.0,64308.0,0.02723321]
[1724527197077,0.439554,64309.0,64308.0,0.02723321]
[1724527205174,0.51701754,64309.0,64308.0,0.02723321]
[1724527207886,0.439554,64309.0,64308.0,0.02723321]
[1724527210380,0.51701754,64309.0,64308.0,0.02723321]
[1724527212582,0.15621754,64309.0,64308.0,0.02723321]
[1724527212883,0.51701754,64309.0,64308.0,0.02723321]
[1724527213489,0.46475195,64309.0,64308.0,0.02723321]
[1724527220184,0.10395195,64309.0,64308.0,0.02723321]
[1724527220387,0.46475195,64309.0,64308.0,0.14575321]
[1724527221089,0.46475195,64309.0,64308.0,0.14552]
[1724527221290,0.46475195,64309.0,64301.0,0.0473]
[1724527221291,0.077715,64308.0,64303.0,0.0466345]
[1724527221494,0.11,64304.0,64300.0,0.0466345]
[1724527221693,0.4708,64301.0,64299.0,0.0466345]
[1724527221895,0.18758946,64300.0,64299.0,0.0466345]
[1724527222199,0.18758946,64300.0,64299.0,0.1651545]
[1724527222397,0.18758946,64300.0,64299.0,0.11852]
[1724527222584,0.18762946,64300.0,64299.0,0.11852]
[1724527223199,0.18862946,64300.0,64299.0,0.13152]
[1724527223592,0.11104,64300.0,64299.0,0.13152]
[1724527224194,0.11204,64300.0,64299.0,0.14152]
[1724527224594,0.18962946,64300.0,64299.0,0.023]
[1724527224895,0.18962946,64300.0,64299.0,0.14156]
[1724527225200,0.18960278,64300.0,64299.0,0.14156]
[1724527225499,0.26732778,64300.0,64299.0,0.14156]
[1724527225802,0.189765,64300.0,64299.0,0.14156]
[1724527226097,0.079765,64300.0,64299.0,0.14156]
[1724527226493,0.189765,64300.0,64299.0,0.14156]
[1724527226896,0.21600495,64300.0,64299.0,0.14156]
[1724527227091,0.10600495,64300.0,64299.0,0.14156]
[1724527227287,0.21600495,64300.0,64299.0,0.14156]
[1724527228195,0.57680495,64300.0,64299.0,0.14156]
[1724527229894,0.21600495,64300.0,64299.0,0.14156]
[1724527230102,0.57680495,64300.0,64299.0,0.14156]
[1724527230787,0.21600495,64300.0,64299.0,0.14156]
[1724527230993,0.57680495,64300.0,64299.0,0.14156]
[1724527232398,0.21600495,64300.0,64299.0,0.14156]
[1724527232598,0.57680495,64300.0,64299.0,0.14156]
[1724527233204,0.65436773,64300.0,64299.0,0.12856]
[1724527233607,0.65336773,64300.0,64299.0,0.11856]
[1724527233910,0.57680495,64300.0,64299.0,0.12756]
[1724527234207,0.65436773,64300.0,64299.0,0.12756]
[1724527235000,0.57680495,64300.0,64299.0,0.12756]
[1724527235201,0.65436773,64300.0,64299.0,0.12756]
[1724527235398,0.57680495,64300.0,64299.0,0.12756]
[1724527235598,0.65436773,64300.0,64299.0,0.12756]
[1724527238509,0.54436773,64300.0,64299.0,0.12756]
[1724527238708,0.65436773,64300.0,64299.0,0.12756]
[1724527241513,0.57680495,64300.0,64299.0,0.12756]
[1724527243309,0.21600495,64300.0,64299.0,0.12756]
[1724527243509,0.57680495,64300.0,64299.0,0.12756]
[1724527245514,0.60200807,64300.0,64299.0,0.12756]
[1724527245910,0.57680495,64300.0,64299.0,0.12756]
[1724527246509,0.49200814,64300.0,64299.0,0.12756]
[1724527246808,0.60200814,64300.0,64299.0,0.12756]
[1724527247009,0.57680495,64300.0,64299.0,0.12756]
[1724527247210,0.60200813,64300.0,64299.0,0.12756]
[1724527249219,0.57680495,64300.0,64299.0,0.12756]
[1724527249420,0.46680495,64300.0,64299.0,0.12756]
[1724527249622,0.57680495,64300.0,64299.0,0.12756]
[1724527251321,0.57680495,64300.0,64299.0,0.11856]
[1724527251514,0.57680495,64300.0,64299.0,0.12756]
[1724527254414,0.21600495,64300.0,64299.0,0.12756]
[1724527254613,0.57680495,64300.0,64299.0,0.12756]
[1724527256518,0.21600495,64300.0,64299.0,0.12756]
[1724527256721,0.57680495,64300.0,64299.0,0.12756]
[1724527263224,0.69512481,64300.0,64299.0,0.12756]
[1724527265130,0.6699215,64300.0,64299.0,0.12756]
[1724527267431,0.57680495,64300.0,64299.0,0.12756]
[1724527271638,0.6020083,64300.0,64299.0,0.12756]
[1724527273740,0.63203526,64300.0,64299.0,0.12756]
[1724527274344,0.077732,64294.0,64293.0,0.04689939]
[1724527274545,0.077732,64294.0,64293.0,0.14297965]
[1724527274546,0.57373535,64294.0,64293.0,0.14297965]
[1724527274739,0.57373535,64294.0,64293.0,0.11867321]
[1724527275041,0.57377535,64294.0,64293.0,0.11867321]
[1724527275338,0.57377535,64294.0,64285.0,0.11844]
[1724527275339,0.60380629,64294.0,64285.0,0.11844]
[1724527275545,0.4708,64286.0,64281.0,0.04666618]
[1724527275731,0.11,64282.0,64278.0,0.04666618]
[1724527275937,0.11823161,64281.0,64280.0,0.27396]
[1724527276441,0.11827161,64281.0,64280.0,0.27396]
[1724527276640,0.07754434,64281.0,64280.0,0.27396]
[1724527276840,0.15529234,64281.0,64280.0,0.27396]
[1724527277231,0.077788,64281.0,64280.0,0.27396]
[1724527277745,0.12413908,64281.0,64280.0,0.27396]
[1724527278545,0.079788,64281.0,64280.0,0.27396]
[1724527280545,0.14161932,64281.0,64280.0,0.27396]
[1724527280742,0.50241932,64281.0,64280.0,0.27396]
[1724527281741,0.61241932,64281.0,64280.0,0.27396]
[1724527282736,0.57717857,64281.0,64274.0,0.00023321]
[1724527282943,0.15641774,64277.0,64274.0,0.11867321]
[1724527283245,0.3608,64275.0,64274.0,0.11867321]
[1724527283443,0.36084,64275.0,64274.0,0.11867321]
[1724527283648,0.36084,64275.0,64274.0,0.16533939]
[1724527284442,0.36084,64275.0,64274.0,0.11867321]
[1724527285751,0.36184,64275.0,64274.0,0.11867321]
[1724527286052,0.36284,64275.0,64274.0,0.11867321]
[1724527286650,0.00204,64275.0,64274.0,0.11867321]
[1724527287651,0.04845774,64275.0,64274.0,0.11867321]
[1724527287850,0.12621274,64275.0,64274.0,0.11867321]
[1724527289351,0.04845774,64275.0,64274.0,0.11867321]
[1724527290156,0.00204,64275.0,64274.0,0.11867321]
[1724527290553,0.04845774,64275.0,64274.0,0.11867321]
[1724527292853,0.00204,64275.0,64274.0,0.11867321]
[1724527293060,0.04845774,64275.0,64274.0,0.11867321]
[1724527294556,0.00204,64275.0,64274.0,0.11867321]
[1724527294851,0.00204,64275.0,64274.0,0.16528142]
[1724527296062,0.04849227,64275.0,64274.0,0.11867321]
[1724527296257,0.00204,64275.0,64274.0,0.11867321]
[1724527301156,0.079795,64275.0,64274.0,0.11867321]
[1724527301755,0.15729934,64275.0,64274.0,0.11867321]
[1724527301958,0.079795,64275.0,64274.0,0.11867321]
[1724527303061,0.440595,64275.0,64274.0,0.11867321]
[1724527304670,0.51809934,64275.0,64274.0,0.11867321]
[1724527306366,0.36284,64275.0,64274.0,0.11867321]
[1724527306566,0.47284,64275.0,64274.0,0.11867321]
[1724527306867,0.53479391,64275.0,64274.0,0.11867321]
[1724527307066,0.53479391,64275.0,64274.0,0.16529854]
[1724527307067,0.47284,64275.0,64274.0,0.16529854]
[1724527307259,0.53479267,64275.0,64274.0,0.16529854]
[1724527307462,0.53479267,64275.0,64274.0,0.11867321]
[1724527308463,0.42479267,64275.0,64274.0,0.11867321]
[1724527308661,0.53479267,64275.0,64274.0,0.11867321]
[1724527310466,0.17399267,64275.0,64274.0,0.11867321]
[1724527326590,0.11204,64275.0,64274.0,0.11867321]
[1724527331481,0.17402998,64275.0,64274.0,0.11867321]
[1724527331881,0.16728478,64275.0,64274.0,0.11867321]
[1724527333479,0.05728478,64275.0,64274.0,0.11867321]
[1724527333790,0.16728478,64275.0,64274.0,0.11867321]
[1724527334691,0.05728478,64275.0,64274.0,0.11867321]
[1724527334890,0.11204,64275.0,64274.0,0.18089478]
[1724527335584,0.11204,64275.0,64274.0,0.11867321]
[1724527337191,0.439462,64286.0,64274.0,0.11867321]
[1724527337192,0.06203991,64276.0,64275.0,0.077755]
[1724527337395,0.17203991,64279.0,64278.0,0.077752]
[1724527337695,0.11,64279.0,64278.0,0.15549532]
[1724527338088,0.11,64279.0,64278.0,0.17494417]
[1724527338283,0.11,64279.0,64278.0,0.62225532]
[1724527338588,0.04649496,64280.0,64278.0,0.99620761]
[1724527338784,0.04649496,64281.0,64280.0,0.077749]
[1724527338983,0.15649496,64281.0,64280.0,0.077749]
[1724527339179,0.15649496,64281.0,64280.0,0.544469]
[1724527339588,0.15649496,64281.0,64280.0,0.544509]
[1724527339589,0.11,64281.0,64280.0,0.544509]
[1724527339986,0.04649496,64282.0,64281.0,0.077748]
[1724527340184,0.04649496,64284.0,64283.0,0.077746]
[1724527340385,0.04649496,64284.0,64283.0,0.544426]
[1724527340585,0.04649496,64286.0,64283.0,0.86668]
[1724527340790,0.04672817,64287.0,64286.0,0.077742]
[1724527341189,0.00023321,64287.0,64286.0,0.077742]
[1724527341594,0.00023321,64287.0,64286.0,0.12435873]
[1724527341893,0.00023321,64287.0,64286.0,0.077782]
[1724527342190,0.04645486,64294.0,64286.0,1.30526332]
[1724527342393,0.15645486,64298.0,64296.0,0.077729]
[1724527342598,0.11,64298.0,64297.0,0.21648]
[1724527342799,0.11,64298.0,64297.0,0.26538]
[1724527343202,0.11,64298.0,64297.0,0.224869]
[1724527343384,0.11,64298.0,64297.0,0.38971769]
[1724527343592,0.11,64298.0,64297.0,0.343149]
[1724527345006,0.113,64298.0,64297.0,0.343149]
[1724527345189,0.117,64298.0,64297.0,0.343149]
[1724527348393,0.117,64298.0,64297.0,0.37015699]
[1724527350097,0.007,64298.0,64297.0,0.37015699]
[1724527350394,0.00023321,64304.0,64303.0,0.077722]
[1724527351199,0.00023321,64304.0,64303.0,0.077762]
[1724527351497,0.00023321,64304.0,64303.0,0.079762]
[1724527351993,0.00023321,64304.0,64303.0,0.077762]
[1724527352195,0.00023321,64304.0,64303.0,0.080762]
[1724527352395,0.00023321,64304.0,64303.0,0.081762]
[1724527352595,0.00023321,64304.0,64303.0,0.200002]
[1724527353404,0.11023321,64304.0,64303.0,0.200002]
[1724527354191,0.00023321,64304.0,64303.0,0.200002]
[1724527354501,0.11023321,64304.0,64303.0,0.200002]
[1724527355002,0.00023321,64304.0,64303.0,0.200002]
[1724527355198,0.00023321,64304.0,64303.0,0.310002]
[1724527355503,0.11,64310.0,64309.0,0.077714]
[1724527356196,0.3608,64311.0,64310.0,0.077713]
[1724527356903,0.3608,64311.0,64310.0,0.195993]
[1724527357595,0.04668807,64317.0,64316.0,0.077706]
[1724527357798,0.11023321,64317.0,64316.0,0.077706]
[1724527358600,0.11023321,64317.0,64316.0,0.077746]
[1724527358802,0.12223321,64317.0,64316.0,0.078746]
[1724527358992,0.15953753,64317.0,64316.0,0.079746]
[1724527359197,0.15953753,64317.0,64316.0,0.197986]
[1724527360804,0.22157744,64317.0,64316.0,0.197986]
[1724527361505,0.15953753,64317.0,64316.0,0.197986]
[1724527361904,0.2212218,64317.0,64316.0,0.197986]
[1724527362106,0.15953753,64317.0,64316.0,0.197986]
[1724527362300,0.22122169,64317.0,64316.0,0.197986]
[1724527362496,0.15953753,64317.0,64316.0,0.197986]
[1724527363409,0.15953753,64317.0,64316.0,0.22528251]
[1724527363410,0.04953753,64317.0,64316.0,0.22528251]
[1724527363708,0.04953753,64317.0,64316.0,0.197986]
[1724527363904,0.15953753,64317.0,64316.0,0.197866]
[1724527370611,0.20586561,64317.0,64316.0,0.197866]
[1724527371709,0.15953753,64317.0,64316.0,0.197866]
[1724527372013,0.25279404,64317.0,64316.0,0.197866]
[1724527376019,0.15953753,64317.0,64316.0,0.197866]
[1724527376222,0.04953753,64317.0,64316.0,0.197866]
[1724527376523,0.09593709,64317.0,64316.0,0.197866]
[1724527378320,0.06963277,64317.0,64316.0,0.197866]
[1724527378714,0.02323321,64317.0,64316.0,0.197866]
[1724527379422,0.02323321,64317.0,64316.0,0.558666]
[1724527382022,0.0484246,64317.0,64316.0,0.558666]
[1724527382228,0.04842478,64317.0,64316.0,0.558666]
[1724527384325,0.02323321,64317.0,64316.0,0.558666]
[1724527384729,0.10093821,64317.0,64316.0,0.197866]
[1724527384924,0.12612956,64317.0,64316.0,0.197866]
[1724527385324,0.12612956,64317.0,64316.0,0.00204]
[1724527385523,0.12612956,64317.0,64316.0,0.12016]
[1724527385924,0.10093821,64317.0,64316.0,0.12016]
[1724527386633,0.16294498,64317.0,64316.0,0.18229297]
[1724527387435,0.21093821,64317.0,64316.0,0.12016]
[1724527388824,0.10093821,64317.0,64316.0,0.12016]
[1724527389128,0.21093821,64317.0,64316.0,0.12016]
[1724527390721,0.21093821,64317.0,64316.0,0.00204]
[1724527390923,0.23613285,64317.0,64316.0,0.12008]
[1724527391120,0.23613397,64317.0,64316.0,0.12008]
[1724527392028,0.26615232,64317.0,64316.0,0.12008]
[1724527392328,0.23613397,64317.0,64316.0,0.12008]
[1724527393230,0.26615232,64317.0,64316.0,0.12008]
[1724527393431,0.23613397,64317.0,64316.0,0.12008]
[1724527395932,0.59693397,64317.0,64316.0,0.12008]
[1724527396637,0.48693397,64317.0,64316.0,0.12008]
[1724527397032,0.80420646,64317.0,64316.0,0.12008]
[1724527397549,0.6051518,64317.0,64316.0,0.12008]
[1724527397740,0.66500776,64317.0,64316.0,0.12008]
[1724527400038,0.68989221,64317.0,64316.0,0.12008]
[1724527400230,0.40922897,64317.0,64316.0,0.12008]
[1724527400437,0.40922897,64317.0,64316.0,0.22208379]
[1724527400637,0.38403321,64317.0,64316.0,0.22208379]
[1724527401046,0.38403321,64317.0,64316.0,0.197786]
[1724527406843,0.02323321,64317.0,64316.0,0.197786]
[1724527408134,0.02323321,64317.0,64316.0,0.22208245]
[1724527409245,0.02323321,64317.0,64316.0,0.33208245]
[1724527411642,0.02323321,64317.0,64316.0,0.307786]
[1724527411944,0.02323321,64317.0,64316.0,0.3320823]
[1724527412850,0.02323321,64317.0,64316.0,0.2220823]
[1724527413449,0.02323321,64317.0,64316.0,0.3320823]
[1724527414842,0.02323321,64317.0,64316.0,0.6928823]
[1724527415241,0.06973302,64317.0,64316.0,0.6928823]
[1724527415444,0.02323321,64317.0,64316.0,0.6928823]
[1724527417452,0.02323321,64317.0,64316.0,0.668586]
[1724527417756,0.02323321,64317.0,64316.0,0.69288057]
[1724527420348,0.06971626,64317.0,64316.0,0.69288057]
[1724527420549,0.06971626,64317.0,64316.0,0.668586]
[1724527420749,0.06971626,64317.0,64316.0,0.69288057]
[1724527421150,0.06199716,64320.0,64319.0,0.077702]
[1724527421351,0.06199716,64320.0,64319.0,0.21199657]
[1724527421542,0.06199716,64321.0,64320.0,0.077701]
[1724527421747,0.06199716,64321.0,64320.0,0.25879557]
[1724527422454,0.06199716,64321.0,64320.0,0.25883557]
[1724527423153,0.10471928,64324.0,64323.0,0.077697]
[1724527423154,0.07747254,64324.0,64323.0,0.077697]
[1724527423344,0.07747254,64324.0,64323.0,0.187697]
[1724527423550,0.077696,64325.0,64323.0,0.187697]
[1724527423551,0.15516854,64325.0,64323.0,0.187697]
[1724527424154,0.15517718,64325.0,64323.0,0.187697]
[1724527424358,0.15517718,64325.0,64324.0,4e-05]